[Event "*** SCC Grand Prix: Titled Tuesday Blitz"]
[Site "Chess.com"]
[Date "2020.07.14"]
[Round "8"]
[White "talaicito"]
[Black "Sueetin"]
[Result "0-1"]
[WhiteElo "2180"]
[BlackElo "2335"]
[TimeControl "180+1"]
[EndTime "11:36:28 PDT"]
[Termination "Sueetin won on time"]

1. d4 {[%clk 0:03:00.9]} 1... Nf6 {[%clk 0:02:59.8]} 2. Nc3 {[%clk 0:03:00.6]}
2... d5 {[%clk 0:02:58.8]} 3. Bf4 {[%clk 0:03:00.6]} 3... a6 {[%clk 0:02:58.2]}
4. e3 {[%clk 0:03:00.5]} 4... g6 {[%clk 0:02:58]} 5. Nf3 {[%clk 0:02:57.5]} 5...
Bg7 {[%clk 0:02:58.1]} 6. Ne5 {[%clk 0:02:56.6]} 6... c6 {[%clk 0:02:53]} 7. h4
{[%clk 0:02:55.7]} 7... h5 {[%clk 0:02:52]} 8. Be2 {[%clk 0:02:54]} 8... Nfd7
{[%clk 0:02:46.7]} 9. g4 {[%clk 0:02:50.2]} 9... hxg4 {[%clk 0:02:43.7]} 10.
Bxg4 {[%clk 0:02:47.1]} 10... Nxe5 {[%clk 0:02:43.7]} 11. dxe5 {[%clk
0:02:46.1]} 11... Bxg4 {[%clk 0:02:40]} 12. Qxg4 {[%clk 0:02:47]} 12... Qd7
{[%clk 0:02:40.4]} 13. Qg3 {[%clk 0:02:25.8]} 13... Qf5 {[%clk 0:02:40.2]} 14.
O-O-O {[%clk 0:02:24.6]} 14... Nd7 {[%clk 0:02:37.1]} 15. f3 {[%clk 0:01:55]}
15... Bxe5 {[%clk 0:02:09.5]} 16. Bxe5 {[%clk 0:01:46.2]} 16... Qxe5 {[%clk
0:02:10.1]} 17. f4 {[%clk 0:01:46.5]} 17... Qf5 {[%clk 0:02:06]} 18. e4 {[%clk
0:01:23.5]} 18... dxe4 {[%clk 0:02:02.2]} 19. Qe3 {[%clk 0:01:13.7]} 19... Nf6
{[%clk 0:02:00.8]} 20. Rd4 {[%clk 0:01:03.1]} 20... Kf8 {[%clk 0:01:23.6]} 21.
Nxe4 {[%clk 0:01:00.4]} 21... Nd5 {[%clk 0:01:23.5]} 22. Qg3 {[%clk 0:00:37.9]}
22... Qxf4+ {[%clk 0:00:57]} 23. Qxf4 {[%clk 0:00:37.6]} 23... Nxf4 {[%clk
0:00:57.9]} 24. Rd7 {[%clk 0:00:36.3]} 24... f6 {[%clk 0:00:40.4]} 25. Rxb7
{[%clk 0:00:19.4]} 25... g5 {[%clk 0:00:39.8]} 26. Re1 {[%clk 0:00:18.1]} 26...
gxh4 {[%clk 0:00:32.1]} 27. Nc5 {[%clk 0:00:17.2]} 27... Ng6 {[%clk 0:00:23.4]}
28. Ne6+ {[%clk 0:00:16.1]} 28... Kf7 {[%clk 0:00:22.5]} 29. Nc7 {[%clk
0:00:14.5]} 29... Rad8 {[%clk 0:00:19.3]} 30. Nxa6 {[%clk 0:00:14.1]} 30... h3
{[%clk 0:00:18.9]} 31. Nc5 {[%clk 0:00:13.5]} 31... h2 {[%clk 0:00:18.4]} 32.
Rh1 {[%clk 0:00:13.5]} 32... Rd5 {[%clk 0:00:17.4]} 33. Nd3 {[%clk 0:00:12.9]}
33... Rg5 {[%clk 0:00:17.3]} 34. Kd2 {[%clk 0:00:10.4]} 34... Rg1 {[%clk
0:00:14.9]} 35. Nf2 {[%clk 0:00:10.5]} 35... Ne5 {[%clk 0:00:07.5]} 36. a4
{[%clk 0:00:07.6]} 36... Ng4 {[%clk 0:00:06.7]} 0-1

[Event "*** SCC Grand Prix: Titled Tuesday Blitz"]
[Site "Chess.com"]
[Date "2020.07.14"]
[Round "8"]
[White "XDPS"]
[Black "davidkalashian"]
[Result "1-0"]
[WhiteElo "2693"]
[BlackElo "2569"]
[TimeControl "180+1"]
[EndTime "11:36:30 PDT"]
[Termination "XDPS won by checkmate"]

1. e4 {[%clk 0:03:00.7]} 1... c5 {[%clk 0:02:57.5]} 2. Nf3 {[%clk 0:02:59.7]}
2... a6 {[%clk 0:02:56.7]} 3. c4 {[%clk 0:02:49.5]} 3... e6 {[%clk 0:02:54.5]}
4. Nc3 {[%clk 0:02:39.8]} 4... Nc6 {[%clk 0:02:50.8]} 5. d4 {[%clk 0:02:39.7]}
5... cxd4 {[%clk 0:02:49.7]} 6. Nxd4 {[%clk 0:02:40.6]} 6... Nf6 {[%clk
0:02:49.3]} 7. Nxc6 {[%clk 0:02:32.5]} 7... dxc6 {[%clk 0:02:47.2]} 8. Qxd8+
{[%clk 0:02:29.1]} 8... Kxd8 {[%clk 0:02:48.1]} 9. Bf4 {[%clk 0:02:28.6]} 9...
Bb4 {[%clk 0:02:31.8]} 10. O-O-O+ {[%clk 0:02:26.7]} 10... Ke7 {[%clk
0:02:23.6]} 11. f3 {[%clk 0:02:14.3]} 11... Nd7 {[%clk 0:02:05]} 12. a3 {[%clk
0:02:04.6]} 12... Bxc3 {[%clk 0:01:56.8]} 13. Bd6+ {[%clk 0:02:04.1]} 13... Ke8
{[%clk 0:01:50.1]} 14. bxc3 {[%clk 0:02:05]} 14... f6 {[%clk 0:01:50.3]} 15. c5
{[%clk 0:02:03.4]} 15... Ne5 {[%clk 0:01:39.9]} 16. Kc2 {[%clk 0:01:34]} 16...
Nf7 {[%clk 0:01:33.5]} 17. Bc7 {[%clk 0:01:33.9]} 17... Ke7 {[%clk 0:01:29.1]}
18. Bc4 {[%clk 0:01:32]} 18... Bd7 {[%clk 0:01:25.9]} 19. f4 {[%clk 0:01:28.6]}
19... Rac8 {[%clk 0:01:20]} 20. Ba5 {[%clk 0:01:26.7]} 20... g5 {[%clk
0:01:08.8]} 21. Rb1 {[%clk 0:01:22.2]} 21... gxf4 {[%clk 0:01:05.2]} 22. Rxb7
{[%clk 0:01:20.4]} 22... Ne5 {[%clk 0:01:05.5]} 23. Rd1 {[%clk 0:01:09.4]} 23...
Rhg8 {[%clk 0:00:57.3]} 24. Bf1 {[%clk 0:01:07.5]} 24... Rb8 {[%clk 0:00:43.8]}
25. Rxb8 {[%clk 0:00:56.3]} 25... Rxb8 {[%clk 0:00:42.8]} 26. Bc7 {[%clk
0:00:56.7]} 26... Ra8 {[%clk 0:00:39.6]} 27. Bd6+ {[%clk 0:00:54.3]} 27... Ke8
{[%clk 0:00:39.7]} 28. Rb1 {[%clk 0:00:53]} 28... Bc8 {[%clk 0:00:20.9]} 29. a4
{[%clk 0:00:50.5]} 29... Kd7 {[%clk 0:00:20]} 30. a5 {[%clk 0:00:49.7]} 30...
Ke8 {[%clk 0:00:19.9]} 31. Be2 {[%clk 0:00:44.8]} 31... Kd7 {[%clk 0:00:18.1]}
32. Rd1 {[%clk 0:00:43.2]} 32... Ke8 {[%clk 0:00:17.7]} 33. Bh5+ {[%clk
0:00:43.6]} 33... Ng6 {[%clk 0:00:16.6]} 34. e5 {[%clk 0:00:26.9]} 34... fxe5
{[%clk 0:00:15.1]} 35. Bxe5 {[%clk 0:00:27.1]} 35... Ra7 {[%clk 0:00:15]} 36.
Bxf4 {[%clk 0:00:22.9]} 36... Rd7 {[%clk 0:00:15.4]} 37. Bd6 {[%clk 0:00:21.7]}
37... Rf7 {[%clk 0:00:15.2]} 38. Rd2 {[%clk 0:00:20.8]} 38... Rf1 {[%clk
0:00:13.9]} 39. Kb2 {[%clk 0:00:17.3]} 39... Rh1 {[%clk 0:00:13.3]} 40. Rf2
{[%clk 0:00:16.1]} 40... e5 {[%clk 0:00:10.3]} 41. Rf8+ {[%clk 0:00:15.6]} 41...
Kd7 {[%clk 0:00:10.8]} 42. Bg4# {[%clk 0:00:15.3]} 1-0

[Event "*** SCC Grand Prix: Titled Tuesday Blitz"]
[Site "Chess.com"]
[Date "2020.07.14"]
[Round "8"]
[White "ljuks68"]
[Black "Denmark2015"]
[Result "0-1"]
[WhiteElo "2447"]
[BlackElo "2586"]
[TimeControl "180+1"]
[EndTime "11:36:30 PDT"]
[Termination "Denmark2015 won on time"]

1. e4 {[%clk 0:02:57]} 1... e6 {[%clk 0:02:59.6]} 2. d4 {[%clk 0:02:56.4]} 2...
d5 {[%clk 0:02:59.7]} 3. Nc3 {[%clk 0:02:56.9]} 3... Bb4 {[%clk 0:02:57.9]} 4.
e5 {[%clk 0:02:56]} 4... b6 {[%clk 0:02:58.1]} 5. Qg4 {[%clk 0:02:50.8]} 5...
Bf8 {[%clk 0:02:57.8]} 6. Nh3 {[%clk 0:02:47.5]} 6... Qd7 {[%clk 0:02:53.5]} 7.
Bb5 {[%clk 0:02:39.5]} 7... c6 {[%clk 0:02:53.6]} 8. Ba4 {[%clk 0:02:39.1]} 8...
Ba6 {[%clk 0:02:54.3]} 9. Nf4 {[%clk 0:02:32.2]} 9... g6 {[%clk 0:02:49.7]} 10.
h4 {[%clk 0:02:26.7]} 10... h5 {[%clk 0:02:48.3]} 11. Qd1 {[%clk 0:02:15.8]}
11... Nh6 {[%clk 0:02:42.2]} 12. Nce2 {[%clk 0:02:14.6]} 12... Bb5 {[%clk
0:02:39.8]} 13. Bb3 {[%clk 0:02:12.3]} 13... Bc4 {[%clk 0:02:40.1]} 14. c3
{[%clk 0:02:02.9]} 14... Bxb3 {[%clk 0:02:40]} 15. axb3 {[%clk 0:02:02.3]} 15...
c5 {[%clk 0:02:28.7]} 16. Ng3 {[%clk 0:01:54.1]} 16... Nc6 {[%clk 0:02:25.2]}
17. Be3 {[%clk 0:01:41.2]} 17... a5 {[%clk 0:02:21]} 18. Qd3 {[%clk 0:01:28.2]}
18... Be7 {[%clk 0:02:18.1]} 19. Qb5 {[%clk 0:01:22]} 19... cxd4 {[%clk
0:02:11.6]} 20. Bxd4 {[%clk 0:01:14.7]} 20... Nxd4 {[%clk 0:02:06.7]} 21. Qxd7+
{[%clk 0:01:14]} 21... Kxd7 {[%clk 0:02:07.6]} 22. cxd4 {[%clk 0:01:14.2]} 22...
Rac8 {[%clk 0:02:06.6]} 23. Kd2 {[%clk 0:01:11.9]} 23... Rc6 {[%clk 0:02:05.9]}
24. Rac1 {[%clk 0:01:09.8]} 24... Rhc8 {[%clk 0:02:02.6]} 25. Rxc6 {[%clk
0:01:08.2]} 25... Rxc6 {[%clk 0:02:02.4]} 26. Nd3 {[%clk 0:01:05.5]} 26... Kc7
{[%clk 0:01:45.3]} 27. Ne2 {[%clk 0:01:01.9]} 27... Kb7 {[%clk 0:01:32.8]} 28.
g3 {[%clk 0:00:58.3]} 28... Ka6 {[%clk 0:01:24.5]} 29. Rc1 {[%clk 0:00:38.1]}
29... Kb7 {[%clk 0:01:19.6]} 30. Rxc6 {[%clk 0:00:35.6]} 30... Kxc6 {[%clk
0:01:20.5]} 31. f3 {[%clk 0:00:32.7]} 31... Nf5 {[%clk 0:01:19.1]} 32. Ndf4
{[%clk 0:00:29.3]} 32... Bb4+ {[%clk 0:01:16.6]} 33. Kd1 {[%clk 0:00:26.1]}
33... Ne3+ {[%clk 0:01:02.8]} 34. Kc1 {[%clk 0:00:25.1]} 34... Be1 {[%clk
0:00:55.4]} 35. Nd3 {[%clk 0:00:24.1]} 35... Bb4 {[%clk 0:00:45.9]} 36. Nxb4+
{[%clk 0:00:23.8]} 36... axb4 {[%clk 0:00:46.2]} 37. Kd2 {[%clk 0:00:24]} 37...
Nf5 {[%clk 0:00:44.4]} 38. Kd3 {[%clk 0:00:18.2]} 38... Kd7 {[%clk 0:00:43.5]}
39. Kd2 {[%clk 0:00:17.5]} 39... Ke7 {[%clk 0:00:41.3]} 40. Kd3 {[%clk
0:00:17.1]} 40... f6 {[%clk 0:00:41.2]} 41. Kd2 {[%clk 0:00:14]} 41... fxe5
{[%clk 0:00:39.9]} 42. dxe5 {[%clk 0:00:12.9]} 42... Kd7 {[%clk 0:00:40.3]} 43.
Kd3 {[%clk 0:00:12.9]} 43... Kc6 {[%clk 0:00:40.7]} 44. f4 {[%clk 0:00:07.6]}
44... Kc5 {[%clk 0:00:40.3]} 45. Kd2 {[%clk 0:00:05.3]} 45... Nd4 {[%clk
0:00:32.5]} 46. Nc1 {[%clk 0:00:01.9]} 46... Nf5 {[%clk 0:00:29.1]} 0-1

[Event "*** SCC Grand Prix: Titled Tuesday Blitz"]
[Site "Chess.com"]
[Date "2020.07.14"]
[Round "8"]
[White "MusicCityMaster"]
[Black "GMJustin"]
[Result "1-0"]
[WhiteElo "2426"]
[BlackElo "2292"]
[TimeControl "180+1"]
[EndTime "11:36:30 PDT"]
[Termination "MusicCityMaster won on time"]

1. e4 {[%clk 0:03:00.9]} 1... e5 {[%clk 0:02:58.5]} 2. Nf3 {[%clk 0:03:00.9]}
2... Nc6 {[%clk 0:02:57.7]} 3. Bb5 {[%clk 0:03:00.1]} 3... a6 {[%clk 0:02:53.3]}
4. Ba4 {[%clk 0:02:59.8]} 4... Nf6 {[%clk 0:02:52.7]} 5. O-O {[%clk 0:02:59]}
5... Be7 {[%clk 0:02:48.4]} 6. Re1 {[%clk 0:02:58.5]} 6... b5 {[%clk 0:02:47.6]}
7. Bb3 {[%clk 0:02:58.9]} 7... d6 {[%clk 0:02:46.6]} 8. c3 {[%clk 0:02:59]} 8...
O-O {[%clk 0:02:46.1]} 9. h3 {[%clk 0:02:59.7]} 9... Na5 {[%clk 0:02:45.1]} 10.
Bc2 {[%clk 0:02:59.1]} 10... c5 {[%clk 0:02:42.3]} 11. d4 {[%clk 0:02:59.6]}
11... Qc7 {[%clk 0:02:27.3]} 12. Nbd2 {[%clk 0:02:56.4]} 12... Nc6 {[%clk
0:02:19.1]} 13. d5 {[%clk 0:02:52.9]} 13... Nd8 {[%clk 0:02:14.1]} 14. Nf1
{[%clk 0:02:52.9]} 14... Ne8 {[%clk 0:02:03.8]} 15. Ng3 {[%clk 0:02:46.6]} 15...
g6 {[%clk 0:02:00.1]} 16. a4 {[%clk 0:02:39.6]} 16... Rb8 {[%clk 0:01:48.6]} 17.
axb5 {[%clk 0:02:38.1]} 17... axb5 {[%clk 0:01:48.1]} 18. Bh6 {[%clk 0:02:32.6]}
18... Ng7 {[%clk 0:01:47.5]} 19. Qd2 {[%clk 0:02:32.8]} 19... f6 {[%clk
0:01:40.4]} 20. Nh2 {[%clk 0:02:16.2]} 20... Nf7 {[%clk 0:01:36.2]} 21. Be3
{[%clk 0:02:11.7]} 21... f5 {[%clk 0:01:24.3]} 22. f4 {[%clk 0:02:08.1]} 22...
exf4 {[%clk 0:01:21.9]} 23. Bxf4 {[%clk 0:02:07.6]} 23... g5 {[%clk 0:01:19.4]}
24. exf5 {[%clk 0:01:54.1]} 24... gxf4 {[%clk 0:01:18.4]} 25. Qxf4 {[%clk
0:01:51.5]} 25... Bf6 {[%clk 0:01:10.3]} 26. Ng4 {[%clk 0:01:49.7]} 26... Ne5
{[%clk 0:00:54.1]} 27. Nh6+ {[%clk 0:01:41.4]} 27... Kh8 {[%clk 0:00:52.6]} 28.
Ne4 {[%clk 0:01:32.4]} 28... Qd8 {[%clk 0:00:33.9]} 29. Ra7 {[%clk 0:01:25]}
29... Rb7 {[%clk 0:00:28.7]} 30. Ra8 {[%clk 0:01:22.1]} 30... Qe7 {[%clk
0:00:16.9]} 31. Rea1 {[%clk 0:01:15.7]} 31... Bd7 {[%clk 0:00:11.8]} 32. g4
{[%clk 0:00:44.7]} 32... Bh4 {[%clk 0:00:06.2]} 33. Rxf8+ {[%clk 0:00:37]} 33...
Qxf8 {[%clk 0:00:06]} 34. Nxd6 {[%clk 0:00:34]} 34... Qxd6 {[%clk 0:00:05.3]}
35. Qxe5 {[%clk 0:00:34]} 35... Qxe5 {[%clk 0:00:05.3]} 36. Nf7+ {[%clk
0:00:34.2]} 36... Kg8 {[%clk 0:00:05.4]} 37. Nxe5 {[%clk 0:00:35.1]} 37... Be8
{[%clk 0:00:05.4]} 38. Ra8 {[%clk 0:00:31.4]} 38... Re7 {[%clk 0:00:04.5]} 39.
Nf3 {[%clk 0:00:20.2]} 39... Bf6 {[%clk 0:00:04]} 40. g5 {[%clk 0:00:19.5]}
40... Bxg5 {[%clk 0:00:01.7]} 41. Nxg5 {[%clk 0:00:18.9]} 41... Nh5 {[%clk
0:00:01.2]} 42. Ne6 {[%clk 0:00:18.3]} 1-0

[Event "*** SCC Grand Prix: Titled Tuesday Blitz"]
[Site "Chess.com"]
[Date "2020.07.14"]
[Round "8"]
[White "Terao90"]
[Black "MasterKroket"]
[Result "1-0"]
[WhiteElo "2287"]
[BlackElo "2390"]
[TimeControl "180+1"]
[EndTime "11:36:30 PDT"]
[Termination "Terao90 won by resignation"]

1. e4 {[%clk 0:03:00.9]} 1... c5 {[%clk 0:02:59.6]} 2. Nf3 {[%clk 0:03:00.2]}
2... e6 {[%clk 0:02:59.5]} 3. g3 {[%clk 0:02:57.4]} 3... Nc6 {[%clk 0:02:57.8]}
4. Bg2 {[%clk 0:02:57.1]} 4... g6 {[%clk 0:02:57.1]} 5. d4 {[%clk 0:02:54]} 5...
cxd4 {[%clk 0:02:55.1]} 6. Nxd4 {[%clk 0:02:54.9]} 6... d6 {[%clk 0:02:50.2]} 7.
O-O {[%clk 0:02:50.7]} 7... a6 {[%clk 0:02:47.3]} 8. Nc3 {[%clk 0:02:32.8]} 8...
Bg7 {[%clk 0:02:45.9]} 9. Be3 {[%clk 0:02:32.8]} 9... Nge7 {[%clk 0:02:44.6]}
10. Qd2 {[%clk 0:02:24.6]} 10... O-O {[%clk 0:02:42.1]} 11. Rad1 {[%clk
0:02:23]} 11... Qc7 {[%clk 0:02:39.2]} 12. Nxc6 {[%clk 0:02:20]} 12... Nxc6
{[%clk 0:02:34.2]} 13. Qxd6 {[%clk 0:02:20]} 13... Qxd6 {[%clk 0:02:26.2]} 14.
Rxd6 {[%clk 0:02:20.9]} 14... Nb4 {[%clk 0:02:15.9]} 15. Rd2 {[%clk 0:02:15.9]}
15... a5 {[%clk 0:01:57.4]} 16. a3 {[%clk 0:02:15]} 16... Nc6 {[%clk 0:01:56]}
17. Rfd1 {[%clk 0:01:56.6]} 17... Ne5 {[%clk 0:01:55.2]} 18. b3 {[%clk
0:01:43.3]} 18... b6 {[%clk 0:01:42.3]} 19. Bxb6 {[%clk 0:01:35.4]} 19... Ba6
{[%clk 0:01:43]} 20. Bd4 {[%clk 0:01:33]} 20... Rac8 {[%clk 0:01:42.2]} 21. f4
{[%clk 0:01:28]} 21... Ng4 {[%clk 0:01:35.6]} 22. e5 {[%clk 0:01:11.2]} 22...
Rfd8 {[%clk 0:01:31]} 23. Ne4 {[%clk 0:01:05.9]} 23... Bf8 {[%clk 0:01:23.3]}
24. a4 {[%clk 0:00:58.5]} 24... Nh6 {[%clk 0:01:15]} 25. Nf6+ {[%clk 0:00:53.4]}
25... Kg7 {[%clk 0:01:15.5]} 26. Bb6 {[%clk 0:00:38.2]} 26... Rxd2 {[%clk
0:01:09.4]} 27. Rxd2 {[%clk 0:00:39.1]} 27... Nf5 {[%clk 0:01:06.5]} 28. Be4
{[%clk 0:00:34.4]} 28... Bb4 {[%clk 0:00:53.9]} 29. Rf2 {[%clk 0:00:26.8]} 29...
Ne7 {[%clk 0:00:43.7]} 30. c4 {[%clk 0:00:20.1]} 30... Nc6 {[%clk 0:00:39.3]}
31. Kg2 {[%clk 0:00:17.2]} 31... Bc3 {[%clk 0:00:38.5]} 32. Rc2 {[%clk
0:00:13.9]} 32... Bd4 {[%clk 0:00:37.8]} 33. Bxd4 {[%clk 0:00:12.5]} 33... Nxd4
{[%clk 0:00:38.7]} 34. Rc3 {[%clk 0:00:13.1]} 34... Rb8 {[%clk 0:00:32]} 35. c5
{[%clk 0:00:10.8]} 35... Kf8 {[%clk 0:00:15.4]} 36. c6 {[%clk 0:00:10.5]} 36...
Ke7 {[%clk 0:00:16]} 37. Nd7 {[%clk 0:00:08.2]} 37... Bc8 {[%clk 0:00:13.8]} 38.
Nxb8 {[%clk 0:00:07.8]} 1-0

[Event "*** SCC Grand Prix: Titled Tuesday Blitz"]
[Site "Chess.com"]
[Date "2020.07.14"]
[Round "8"]
[White "Jospem"]
[Black "doons21"]
[Result "1-0"]
[WhiteElo "2818"]
[BlackElo "2646"]
[TimeControl "180+1"]
[EndTime "11:36:31 PDT"]
[Termination "Jospem won by resignation"]

1. e4 {[%clk 0:03:00.9]} 1... e6 {[%clk 0:02:58.7]} 2. d4 {[%clk 0:02:31.4]}
2... d5 {[%clk 0:02:58.8]} 3. Nc3 {[%clk 0:01:37.2]} 3... Bb4 {[%clk 0:02:58.4]}
4. e5 {[%clk 0:01:31.4]} 4... Ne7 {[%clk 0:02:55]} 5. a3 {[%clk 0:01:30.8]} 5...
Bxc3+ {[%clk 0:02:54.9]} 6. bxc3 {[%clk 0:01:31.7]} 6... c5 {[%clk 0:02:55.5]}
7. Nf3 {[%clk 0:01:30.8]} 7... b6 {[%clk 0:02:54]} 8. a4 {[%clk 0:01:29.1]} 8...
Ba6 {[%clk 0:02:44]} 9. Bb5+ {[%clk 0:01:28.8]} 9... Bxb5 {[%clk 0:02:43.1]} 10.
axb5 {[%clk 0:01:29.7]} 10... Qd7 {[%clk 0:02:29.9]} 11. Qe2 {[%clk 0:01:29.4]}
11... c4 {[%clk 0:02:28.5]} 12. Ba3 {[%clk 0:01:29.2]} 12... Qxb5 {[%clk
0:01:51.2]} 13. O-O {[%clk 0:01:25.5]} 13... Qd7 {[%clk 0:01:49]} 14. Nh4 {[%clk
0:01:19.6]} 14... Nbc6 {[%clk 0:01:37.7]} 15. Qg4 {[%clk 0:01:15.3]} 15... Ng6
{[%clk 0:01:29.4]} 16. f4 {[%clk 0:01:10.8]} 16... Nce7 {[%clk 0:01:17.2]} 17.
f5 {[%clk 0:00:53.7]} 17... Nxf5 {[%clk 0:00:30.6]} 18. Nxf5 {[%clk 0:00:52.5]}
18... exf5 {[%clk 0:00:30.8]} 19. Rxf5 {[%clk 0:00:52.9]} 19... O-O-O {[%clk
0:00:21.6]} 20. Raf1 {[%clk 0:00:47.8]} 20... f6 {[%clk 0:00:22]} 21. exf6
{[%clk 0:00:45.2]} 21... gxf6 {[%clk 0:00:22.9]} 22. Qh5 {[%clk 0:00:38.6]}
22... Rhe8 {[%clk 0:00:19.7]} 23. Rxf6 {[%clk 0:00:36.3]} 23... Re6 {[%clk
0:00:19.4]} 24. Rf7 {[%clk 0:00:26.6]} 24... Qa4 {[%clk 0:00:19.9]} 25. Qf5
{[%clk 0:00:19.7]} 25... Re8 {[%clk 0:00:19]} 26. Qxd5 {[%clk 0:00:18.7]} 26...
Qc6 {[%clk 0:00:19.6]} 27. Qxc6+ {[%clk 0:00:16.1]} 27... Rxc6 {[%clk
0:00:20.5]} 28. Rxa7 {[%clk 0:00:16.3]} 28... Kb8 {[%clk 0:00:19.6]} 29. Rxh7
{[%clk 0:00:16.2]} 29... Rce6 {[%clk 0:00:19.5]} 30. d5 {[%clk 0:00:15.8]} 30...
Re1 {[%clk 0:00:19.4]} 31. Bd6+ {[%clk 0:00:16.3]} 31... Ka8 {[%clk 0:00:19]}
32. Bg3 {[%clk 0:00:16.3]} 32... Rxf1+ {[%clk 0:00:18.5]} 33. Kxf1 {[%clk
0:00:17.2]} 33... Rf8+ {[%clk 0:00:19]} 34. Kg1 {[%clk 0:00:16.9]} 34... Rd8
{[%clk 0:00:19.9]} 35. d6 {[%clk 0:00:15.7]} 35... Nf8 {[%clk 0:00:20.4]} 36.
Rh8 {[%clk 0:00:15.5]} 36... Ne6 {[%clk 0:00:20.6]} 37. Rxd8+ {[%clk 0:00:15.3]}
37... Nxd8 {[%clk 0:00:21.5]} 38. h4 {[%clk 0:00:16.1]} 38... Nf7 {[%clk
0:00:20.6]} 39. h5 {[%clk 0:00:16.7]} 39... Kb7 {[%clk 0:00:21.2]} 40. Bf4
{[%clk 0:00:17.3]} 40... Kc6 {[%clk 0:00:21]} 41. h6 {[%clk 0:00:17.7]} 41... b5
{[%clk 0:00:17.9]} 42. g4 {[%clk 0:00:18.3]} 42... Kd7 {[%clk 0:00:18.1]} 43. g5
{[%clk 0:00:18.7]} 43... Nh8 {[%clk 0:00:18.6]} 44. Kf2 {[%clk 0:00:18.8]} 44...
Ng6 {[%clk 0:00:19.5]} 45. Ke3 {[%clk 0:00:19]} 45... Ke6 {[%clk 0:00:20.1]} 46.
Ke4 {[%clk 0:00:19.6]} 46... Kd7 {[%clk 0:00:19.7]} 47. h7 {[%clk 0:00:19.8]}
47... Ke6 {[%clk 0:00:17.7]} 48. Be5 {[%clk 0:00:20.1]} 48... Nxe5 {[%clk
0:00:17.6]} 49. h8=Q {[%clk 0:00:20.3]} 1-0

[Event "*** SCC Grand Prix: Titled Tuesday Blitz"]
[Site "Chess.com"]
[Date "2020.07.14"]
[Round "8"]
[White "lucachess49"]
[Black "YPradafah"]
[Result "1-0"]
[WhiteElo "2451"]
[BlackElo "2537"]
[TimeControl "180+1"]
[EndTime "11:36:31 PDT"]
[Termination "lucachess49 won on time"]

1. d4 {[%clk 0:03:00.9]} 1... Nf6 {[%clk 0:02:57.2]} 2. c4 {[%clk 0:02:59.1]}
2... g6 {[%clk 0:02:55.7]} 3. f3 {[%clk 0:02:57.9]} 3... Bg7 {[%clk 0:02:55.7]}
4. e4 {[%clk 0:02:57.9]} 4... d6 {[%clk 0:02:55.8]} 5. Nc3 {[%clk 0:02:54.7]}
5... O-O {[%clk 0:02:55.9]} 6. Nge2 {[%clk 0:02:54.2]} 6... c5 {[%clk
0:02:55.8]} 7. Be3 {[%clk 0:02:51.7]} 7... cxd4 {[%clk 0:02:56.1]} 8. Nxd4
{[%clk 0:02:51.2]} 8... Nc6 {[%clk 0:02:56.4]} 9. Qd2 {[%clk 0:02:50.4]} 9...
Nxd4 {[%clk 0:02:55.4]} 10. Bxd4 {[%clk 0:02:50.4]} 10... Be6 {[%clk 0:02:56.1]}
11. Rd1 {[%clk 0:02:46.5]} 11... Qa5 {[%clk 0:02:52.2]} 12. b3 {[%clk
0:02:44.6]} 12... Rfc8 {[%clk 0:02:51.2]} 13. Be2 {[%clk 0:02:38.8]} 13... Nd7
{[%clk 0:02:27]} 14. Bxg7 {[%clk 0:02:31.9]} 14... Kxg7 {[%clk 0:02:27.9]} 15.
O-O {[%clk 0:02:32.1]} 15... a6 {[%clk 0:02:22.7]} 16. f4 {[%clk 0:02:31]} 16...
f6 {[%clk 0:02:13.7]} 17. Bf3 {[%clk 0:02:23.3]} 17... Rab8 {[%clk 0:02:02.7]}
18. Qb2 {[%clk 0:01:16]} 18... b5 {[%clk 0:01:55.2]} 19. cxb5 {[%clk 0:01:16.2]}
19... Qxc3 {[%clk 0:01:53.8]} 20. Qxc3 {[%clk 0:01:11.9]} 20... Rxc3 {[%clk
0:01:54.7]} 21. bxa6 {[%clk 0:01:12.3]} 21... Rc7 {[%clk 0:01:29]} 22. e5 {[%clk
0:00:56.9]} 22... fxe5 {[%clk 0:01:25.6]} 23. Bb7 {[%clk 0:00:56]} 23... Nc5
{[%clk 0:00:14.2]} 24. a7 {[%clk 0:00:46.9]} 24... Rf8 {[%clk 0:00:13.6]} 25.
a8=Q {[%clk 0:00:42.3]} 25... Rxa8 {[%clk 0:00:13.7]} 26. Bxa8 {[%clk
0:00:42.8]} 26... Ra7 {[%clk 0:00:11.6]} 27. Bd5 {[%clk 0:00:37.8]} 27... Bxd5
{[%clk 0:00:09.9]} 28. Rxd5 {[%clk 0:00:38.4]} 28... exf4 {[%clk 0:00:10.8]} 29.
Rd2 {[%clk 0:00:36.6]} 29... g5 {[%clk 0:00:09.1]} 30. g3 {[%clk 0:00:34.4]}
30... fxg3 {[%clk 0:00:09]} 31. hxg3 {[%clk 0:00:33.2]} 31... Ne4 {[%clk
0:00:07.7]} 32. Rg2 {[%clk 0:00:33.5]} 32... Nc3 {[%clk 0:00:07.6]} 33. Ra1
{[%clk 0:00:32.6]} 33... Ra3 {[%clk 0:00:06.5]} 34. Rb2 {[%clk 0:00:32.5]} 34...
Nb5 {[%clk 0:00:06.1]} 35. Kg2 {[%clk 0:00:30.2]} 35... h5 {[%clk 0:00:06.4]}
36. b4 {[%clk 0:00:30.3]} 36... e5 {[%clk 0:00:05.8]} 37. Rb3 {[%clk 0:00:30.5]}
37... Ra4 {[%clk 0:00:06.4]} 38. a3 {[%clk 0:00:28.2]} 38... Kf6 {[%clk
0:00:06.7]} 39. Rf1+ {[%clk 0:00:25]} 39... Kg6 {[%clk 0:00:06.4]} 40. Rd1
{[%clk 0:00:24.8]} 40... h4 {[%clk 0:00:05.1]} 41. Rd5 {[%clk 0:00:23.8]} 41...
Nxa3 {[%clk 0:00:04.8]} 42. b5 {[%clk 0:00:20.4]} 1-0